[Event "*** MasterClass Titled Tuesday Blitz"]
[Site "Chess.com"]
[Date "2017.08.01"]
[Round "7"]
[White "vellottiwizard"]
[Black "grzechu96"]
[Result "1-0"]
[WhiteElo "2523"]
[BlackElo "2407"]
[TimeControl "180+2"]
[EndTime "14:28:13 PDT"]
[Termination "vellottiwizard won by resignation"]

1. e4 {[%clk 0:03:02]} 1... c5 {[%clk 0:02:59.9]} 2. Nf3 {[%clk 0:03:01.9]} 2...
d6 {[%clk 0:03:01.2]} 3. d4 {[%clk 0:03:03.6]} 3... cxd4 {[%clk 0:03:03.1]} 4.
Nxd4 {[%clk 0:03:05.2]} 4... Nf6 {[%clk 0:03:04.6]} 5. Nc3 {[%clk 0:03:06.9]}
5... a6 {[%clk 0:03:06]} 6. Be3 {[%clk 0:03:06.1]} 6... e6 {[%clk 0:03:06.9]} 7.
g4 {[%clk 0:03:05.1]} 7... e5 {[%clk 0:03:04.2]} 8. Nf5 {[%clk 0:03:05.5]} 8...
g6 {[%clk 0:03:05.2]} 9. Bg2 {[%clk 0:03:05.9]} 9... gxf5 {[%clk 0:03:01.7]} 10.
exf5 {[%clk 0:03:07.9]} 10... h6 {[%clk 0:02:59.9]} 11. h3 {[%clk 0:03:06.4]}
11... Nc6 {[%clk 0:03:00.1]} 12. Qd2 {[%clk 0:03:07.2]} 12... Bd7 {[%clk
0:02:55.9]} 13. O-O-O {[%clk 0:03:07.2]} 13... Qa5 {[%clk 0:02:56]} 14. f4
{[%clk 0:02:44]} 14... O-O-O {[%clk 0:02:53.9]} 15. Qf2 {[%clk 0:02:45.1]} 15...
exf4 {[%clk 0:02:42.6]} 16. Bb6 {[%clk 0:02:38.8]} 16... Qb4 {[%clk 0:02:43.7]}
17. a3 {[%clk 0:02:32.8]} 17... Qc4 {[%clk 0:02:34.3]} 18. Bf1 {[%clk
0:02:28.8]} 18... Ne4 {[%clk 0:02:25.7]} 19. Qxf4 {[%clk 0:02:29.5]} 19... Nxc3
{[%clk 0:02:09.3]} 20. Bxc4 {[%clk 0:02:29.7]} 20... Nxd1 {[%clk 0:02:10.9]} 21.
Rxd1 {[%clk 0:02:26.5]} 21... Re8 {[%clk 0:02:10.2]} 22. Bxf7 {[%clk 0:02:27.6]}
22... Re5 {[%clk 0:02:08.9]} 23. Bc4 {[%clk 0:02:27.9]} 23... Be7 {[%clk
0:02:09.1]} 24. Kb1 {[%clk 0:02:25.9]} 1-0

[Event "*** MasterClass Titled Tuesday Blitz"]
[Site "Chess.com"]
[Date "2017.08.01"]
[Round "7"]
[White "IvaVidenova"]
[Black "guilty93"]
[Result "1-0"]
[WhiteElo "2456"]
[BlackElo "2379"]
[TimeControl "180+2"]
[EndTime "14:28:49 PDT"]
[Termination "IvaVidenova won by resignation"]

1. e4 {[%clk 0:03:01.9]} 1... e6 {[%clk 0:02:53.8]} 2. d4 {[%clk 0:03:02.2]}
2... d5 {[%clk 0:02:55.1]} 3. Nc3 {[%clk 0:03:02.6]} 3... Bb4 {[%clk 0:02:55.4]}
4. e5 {[%clk 0:03:03]} 4... b6 {[%clk 0:02:55.7]} 5. a3 {[%clk 0:03:03.3]} 5...
Bf8 {[%clk 0:02:57.3]} 6. Bb5+ {[%clk 0:03:01.5]} 6... c6 {[%clk 0:02:57.3]} 7.
Bd3 {[%clk 0:03:01.4]} 7... Ba6 {[%clk 0:02:58.7]} 8. b4 {[%clk 0:03:02]} 8...
Qd7 {[%clk 0:02:56.5]} 9. Rb1 {[%clk 0:02:55]} 9... Bc4 {[%clk 0:02:57.2]} 10.
b5 {[%clk 0:02:44.8]} 10... cxb5 {[%clk 0:02:55.3]} 11. Nxb5 {[%clk 0:02:44.7]}
11... Bxd3 {[%clk 0:02:56]} 12. Qxd3 {[%clk 0:02:44.1]} 12... Nc6 {[%clk
0:02:57.1]} 13. Bd2 {[%clk 0:02:35.1]} 13... a6 {[%clk 0:02:57.8]} 14. Nc3
{[%clk 0:02:33.9]} 14... b5 {[%clk 0:02:58.7]} 15. Nd1 {[%clk 0:02:22.7]} 15...
Nge7 {[%clk 0:02:57.7]} 16. f4 {[%clk 0:02:23.1]} 16... Rb8 {[%clk 0:02:55.8]}
17. Nf3 {[%clk 0:02:23.2]} 17... Nc8 {[%clk 0:02:55.6]} 18. O-O {[%clk
0:02:23.4]} 18... Be7 {[%clk 0:02:55.8]} 19. Ne3 {[%clk 0:02:23.9]} 19... Nb6
{[%clk 0:02:51.7]} 20. f5 {[%clk 0:02:23.5]} 20... Nc4 {[%clk 0:02:51.5]} 21.
fxe6 {[%clk 0:02:16.5]} 21... fxe6 {[%clk 0:02:50.2]} 22. Nxc4 {[%clk
0:02:13.4]} 22... dxc4 {[%clk 0:02:45.9]} 23. Qe4 {[%clk 0:02:13.7]} 23... O-O
{[%clk 0:02:47.8]} 24. c3 {[%clk 0:02:04]} 24... Bxa3 {[%clk 0:02:22.7]} 25. Ng5
{[%clk 0:02:02.5]} 25... g6 {[%clk 0:02:20.9]} 26. Rf6 {[%clk 0:01:46.7]} 26...
Be7 {[%clk 0:02:16.8]} 27. Rxg6+ {[%clk 0:01:34.5]} 1-0

[Event "*** MasterClass Titled Tuesday Blitz"]
[Site "Chess.com"]
[Date "2017.08.01"]
[Round "7"]
[White "Vrolijk"]
[Black "jb2mix"]
[Result "0-1"]
[WhiteElo "2498"]
[BlackElo "2473"]
[TimeControl "180+2"]
[EndTime "14:29:54 PDT"]
[Termination "jb2mix won by resignation"]

1. d4 {[%clk 0:03:01.9]} 1... Nf6 {[%clk 0:03:00.3]} 2. c4 {[%clk 0:02:59.1]}
2... e6 {[%clk 0:03:01.4]} 3. Nf3 {[%clk 0:02:58]} 3... Bb4+ {[%clk 0:03:02.9]}
4. Bd2 {[%clk 0:02:58.6]} 4... Nc6 {[%clk 0:03:01.8]} 5. Bxb4 {[%clk 0:02:57.8]}
5... Nxb4 {[%clk 0:03:01.4]} 6. g3 {[%clk 0:02:58.4]} 6... O-O {[%clk
0:03:01.6]} 7. Bg2 {[%clk 0:02:59.7]} 7... d6 {[%clk 0:03:02.2]} 8. O-O {[%clk
0:03:01.1]} 8... Qe7 {[%clk 0:03:02]} 9. Nc3 {[%clk 0:03:00.8]} 9... a5 {[%clk
0:03:02.5]} 10. Ne1 {[%clk 0:02:53.8]} 10... e5 {[%clk 0:03:00.7]} 11. d5 {[%clk
0:02:42.2]} 11... Bg4 {[%clk 0:02:54.6]} 12. a3 {[%clk 0:02:40.1]} 12... Na6
{[%clk 0:02:55.1]} 13. Nd3 {[%clk 0:02:41.6]} 13... Qd7 {[%clk 0:02:13.6]} 14.
Qd2 {[%clk 0:02:27.9]} 14... Bh3 {[%clk 0:02:05.3]} 15. e4 {[%clk 0:02:27.2]}
15... Bxg2 {[%clk 0:02:05.6]} 16. Kxg2 {[%clk 0:02:29.1]} 16... c6 {[%clk
0:02:06]} 17. b4 {[%clk 0:02:22.3]} 17... cxd5 {[%clk 0:02:05]} 18. cxd5 {[%clk
0:02:23.3]} 18... axb4 {[%clk 0:02:05.5]} 19. axb4 {[%clk 0:02:24.4]} 19... Rfc8
{[%clk 0:02:06.1]} 20. b5 {[%clk 0:02:24.5]} 20... Nc7 {[%clk 0:02:03]} 21. Qb2
{[%clk 0:02:21.2]} 21... h5 {[%clk 0:01:58.7]} 22. Rfc1 {[%clk 0:02:16]} 22...
Rxa1 {[%clk 0:01:55.8]} 23. Rxa1 {[%clk 0:02:15.8]} 23... Na8 {[%clk 0:01:57]}
24. b6 {[%clk 0:02:11.4]} 24... Nxb6 {[%clk 0:01:51]} 25. f3 {[%clk 0:01:52.4]}
25... Nc4 {[%clk 0:01:50.1]} 26. Qb4 {[%clk 0:01:49.2]} 26... Ne3+ {[%clk
0:01:49.8]} 27. Kf2 {[%clk 0:01:45.4]} 27... Nc2 {[%clk 0:01:51.3]} 28. Qa4
{[%clk 0:01:41.5]} 28... Qxa4 {[%clk 0:01:51.3]} 29. Rxa4 {[%clk 0:01:41.8]}
29... Rxc3 {[%clk 0:01:51.3]} 30. Ke2 {[%clk 0:01:43.1]} 30... Nd4+ {[%clk
0:01:51.2]} 31. Kd2 {[%clk 0:01:43.9]} 31... Rc2+ {[%clk 0:01:49.3]} 32. Kd1
{[%clk 0:01:45.5]} 32... Rxh2 {[%clk 0:01:49.4]} 33. f4 {[%clk 0:01:46.9]} 33...
Nxe4 {[%clk 0:01:48.2]} 34. Ra8+ {[%clk 0:01:48.1]} 34... Kh7 {[%clk 0:01:48.8]}
35. fxe5 {[%clk 0:01:50]} 35... dxe5 {[%clk 0:01:46.1]} 36. Nxe5 {[%clk
0:01:51.9]} 36... Rd2+ {[%clk 0:01:43.5]} 37. Ke1 {[%clk 0:01:50.2]} 37... f6
{[%clk 0:01:41.1]} 38. Nf3 {[%clk 0:01:29.6]} 38... Nxf3+ {[%clk 0:01:41.2]} 0-1

[Event "*** MasterClass Titled Tuesday Blitz"]
[Site "Chess.com"]
[Date "2017.08.01"]
[Round "7"]
[White "dmjjmd"]
[Black "abubakrtagelsir"]
[Result "0-1"]
[WhiteElo "2139"]
[BlackElo "2298"]
[TimeControl "180+2"]
[EndTime "14:29:57 PDT"]
[Termination "abubakrtagelsir won on time"]

1. e4 {[%clk 0:00:13.9]} 1... d6 {[%clk 0:02:32.2]} 2. d4 {[%clk 0:00:12.8]}
2... Nf6 {[%clk 0:02:26.3]} 3. Nc3 {[%clk 0:00:12.7]} 3... g6 {[%clk 0:02:27.1]}
4. f4 {[%clk 0:00:13.1]} 4... Bg7 {[%clk 0:02:28.1]} 5. Nf3 {[%clk 0:00:14.7]}
5... c5 {[%clk 0:02:29.1]} 6. dxc5 {[%clk 0:00:09.4]} 6... Qa5 {[%clk
0:02:28.8]} 7. Bd3 {[%clk 0:00:08.7]} 7... Qxc5 {[%clk 0:02:27.5]} 8. Qe2 {[%clk
0:00:10]} 8... Bg4 {[%clk 0:02:26.9]} 9. Be3 {[%clk 0:00:10]} 9... Qa5 {[%clk
0:02:27.3]} 10. O-O {[%clk 0:00:10.6]} 10... Nc6 {[%clk 0:02:26.7]} 11. h3
{[%clk 0:00:11.4]} 11... Bxf3 {[%clk 0:02:27.2]} 12. Qxf3 {[%clk 0:00:13.3]}
12... Nd7 {[%clk 0:02:26.9]} 13. Nd5 {[%clk 0:00:10.1]} 13... e6 {[%clk
0:02:20.8]} 14. Bd2 {[%clk 0:00:05.7]} 14... Qd8 {[%clk 0:02:06.2]} 15. Nc3
{[%clk 0:00:06.5]} 15... O-O {[%clk 0:02:02]} 16. f5 {[%clk 0:00:07]} 16... Nce5
{[%clk 0:01:54.5]} 17. Qg3 {[%clk 0:00:07.8]} 17... Nxd3 {[%clk 0:01:52.8]} 18.
cxd3 {[%clk 0:00:09.7]} 18... Qb6+ {[%clk 0:01:52.7]} 19. Kh1 {[%clk 0:00:06.5]}
19... Qxb2 {[%clk 0:01:53]} 20. fxe6 {[%clk 0:00:05]} 20... Qxd2 {[%clk
0:01:50.8]} 0-1

[Event "*** MasterClass Titled Tuesday Blitz"]
[Site "Chess.com"]
[Date "2017.08.01"]
[Round "7"]
[White "AndrewMcStone"]
[Black "Cocovitsch007"]
[Result "1-0"]
[WhiteElo "2071"]
[BlackElo "2206"]
[TimeControl "180+2"]
[EndTime "14:30:01 PDT"]
[Termination "AndrewMcStone won by resignation"]

1. d4 {[%clk 0:03:01.9]} 1... Nf6 {[%clk 0:03:00.4]} 2. c4 {[%clk 0:03:02.4]}
2... g6 {[%clk 0:03:01.1]} 3. Nc3 {[%clk 0:03:00.5]} 3... Bg7 {[%clk 0:03:01.8]}
4. e4 {[%clk 0:03:02]} 4... d6 {[%clk 0:03:02.4]} 5. Nge2 {[%clk 0:03:03.2]}
5... O-O {[%clk 0:03:01.6]} 6. Ng3 {[%clk 0:03:04.6]} 6... e5 {[%clk 0:03:02.2]}
7. d5 {[%clk 0:03:04.3]} 7... c6 {[%clk 0:03:01.7]} 8. Be2 {[%clk 0:03:05.4]}
8... cxd5 {[%clk 0:03:02.2]} 9. cxd5 {[%clk 0:03:06.4]} 9... a6 {[%clk
0:03:03.1]} 10. O-O {[%clk 0:03:06.9]} 10... b5 {[%clk 0:03:03.5]} 11. b4 {[%clk
0:03:08.4]} 11... Nbd7 {[%clk 0:03:02.7]} 12. a4 {[%clk 0:03:09.7]} 12... bxa4
{[%clk 0:03:01]} 13. Qxa4 {[%clk 0:03:08.8]} 13... Nb6 {[%clk 0:03:00.3]} 14.
Qa5 {[%clk 0:03:05]} 14... Bb7 {[%clk 0:02:43.3]} 15. Be3 {[%clk 0:03:05.6]}
15... Nfd7 {[%clk 0:02:38.1]} 16. Rfc1 {[%clk 0:02:35.9]} 16... f5 {[%clk
0:02:37.8]} 17. exf5 {[%clk 0:02:30.5]} 17... gxf5 {[%clk 0:02:38.4]} 18. f4
{[%clk 0:02:30.4]} 18... exf4 {[%clk 0:02:32.4]} 19. Bxf4 {[%clk 0:02:31.3]}
19... Bd4+ {[%clk 0:02:32.9]} 20. Kh1 {[%clk 0:02:32.3]} 20... Ne5 {[%clk
0:02:33.7]} 21. Ra2 {[%clk 0:02:14.5]} 21... Nbc4 {[%clk 0:02:31.5]} 22. Qxd8
{[%clk 0:02:11.9]} 22... Raxd8 {[%clk 0:02:28.7]} 23. Nd1 {[%clk 0:02:01.5]}
23... Rc8 {[%clk 0:02:11.7]} 24. Rac2 {[%clk 0:01:59.7]} 24... Nb6 {[%clk
0:02:04.5]} 25. Rxc8 {[%clk 0:01:52.9]} 25... Rxc8 {[%clk 0:02:02.9]} 26. Nxf5
{[%clk 0:01:47.8]} 26... Rxc1 {[%clk 0:01:42.7]} 27. Bxc1 {[%clk 0:01:48.2]}
27... Ba1 {[%clk 0:01:32.4]} 28. Nde3 {[%clk 0:01:23.7]} 28... Nxd5 {[%clk
0:01:30.9]} 29. Nxd5 {[%clk 0:01:23]} 29... Bxd5 {[%clk 0:01:31.7]} 30. Ne7+
{[%clk 0:01:24.4]} 30... Kf7 {[%clk 0:01:29.6]} 31. Nxd5 {[%clk 0:01:26.3]}
31... Ke6 {[%clk 0:01:24.1]} 32. Nc7+ {[%clk 0:01:22.5]} 1-0

[Event "*** MasterClass Titled Tuesday Blitz"]
[Site "Chess.com"]
[Date "2017.08.01"]
[Round "7"]
[White "FairChess_on_YouTube"]
[Black "TigranLPetrosyan"]
[Result "1-0"]
[WhiteElo "2751"]
[BlackElo "2743"]
[TimeControl "180+2"]
[EndTime "14:30:50 PDT"]
[Termination "FairChess_on_YouTube won by resignation"]

1. d4 {[%clk 0:03:01.9]} 1... g6 {[%clk 0:03:00.8]} 2. e4 {[%clk 0:03:02.4]}
2... Bg7 {[%clk 0:02:55.6]} 3. Nf3 {[%clk 0:03:03.5]} 3... d6 {[%clk 0:02:56.5]}
4. Bc4 {[%clk 0:03:04.4]} 4... Nf6 {[%clk 0:02:57.4]} 5. Qe2 {[%clk 0:03:05.3]}
5... O-O {[%clk 0:02:59.2]} 6. e5 {[%clk 0:03:03.4]} 6... dxe5 {[%clk
0:03:00.6]} 7. dxe5 {[%clk 0:03:05.3]} 7... Nd5 {[%clk 0:03:02.3]} 8. O-O {[%clk
0:03:06.4]} 8... Nb6 {[%clk 0:02:45.9]} 9. Rd1 {[%clk 0:03:05.6]} 9... Qe8
{[%clk 0:02:46.6]} 10. Bb3 {[%clk 0:03:06.1]} 10... a5 {[%clk 0:02:31.9]} 11. e6
{[%clk 0:02:51.8]} 11... Bxe6 {[%clk 0:02:04.9]} 12. Bxe6 {[%clk 0:02:51.4]}
12... fxe6 {[%clk 0:02:06.8]} 13. Qxe6+ {[%clk 0:02:51]} 13... Kh8 {[%clk
0:02:02.6]} 14. Nc3 {[%clk 0:02:49.5]} 14... Nc6 {[%clk 0:02:02.8]} 15. Be3
{[%clk 0:02:46.3]} 15... Nb4 {[%clk 0:01:38.3]} 16. Bd4 {[%clk 0:02:22.2]} 16...
Qf7 {[%clk 0:01:21.2]} 17. Ng5 {[%clk 0:02:18.6]} 17... Qxe6 {[%clk 0:00:34.2]}
18. Bxg7+ {[%clk 0:02:18.2]} 18... Kxg7 {[%clk 0:00:32.7]} 19. Nxe6+ {[%clk
0:02:20.1]} 19... Kf7 {[%clk 0:00:34.3]} 20. Nxf8 {[%clk 0:02:20.7]} 20... Rxf8
{[%clk 0:00:36.2]} 21. a3 {[%clk 0:02:20.5]} 21... Na6 {[%clk 0:00:37.1]} 22.
Nd5 {[%clk 0:02:20.3]} 22... Nc4 {[%clk 0:00:37.9]} 23. Rd4 {[%clk 0:02:16.1]}
23... Rd8 {[%clk 0:00:31.1]} 24. Re1 {[%clk 0:02:12.8]} 24... e6 {[%clk
0:00:25.9]} 25. Rf4+ {[%clk 0:02:10.7]} 25... Kg7 {[%clk 0:00:27.1]} 26. Nxc7
{[%clk 0:02:09.8]} 26... Nxc7 {[%clk 0:00:24.7]} 27. Rxc4 {[%clk 0:02:10.6]}
27... Rd7 {[%clk 0:00:26.3]} 28. g3 {[%clk 0:02:10.6]} 28... b5 {[%clk
0:00:25.6]} 29. Rc5 {[%clk 0:02:09.1]} 29... Kf6 {[%clk 0:00:25.2]} 30. Kg2
{[%clk 0:02:07.8]} 30... h5 {[%clk 0:00:23.5]} 31. Re3 {[%clk 0:02:07.1]} 31...
Ke7 {[%clk 0:00:21.2]} 32. Rd3 {[%clk 0:02:07.5]} 1-0

[Event "*** MasterClass Titled Tuesday Blitz"]
[Site "Chess.com"]
[Date "2017.08.01"]
[Round "7"]
[White "TheLancer"]
[Black "Cryptochess"]
[Result "0-1"]
[WhiteElo "2463"]
[BlackElo "2480"]
[TimeControl "180+2"]
[EndTime "14:31:03 PDT"]
[Termination "Cryptochess won by resignation"]

1. e4 {[%clk 0:03:01.9]} 1... d6 {[%clk 0:02:59.4]} 2. d4 {[%clk 0:03:02.5]}
2... Nf6 {[%clk 0:02:59.6]} 3. Nc3 {[%clk 0:03:03.8]} 3... g6 {[%clk 0:02:57.5]}
4. h3 {[%clk 0:03:01.7]} 4... Bg7 {[%clk 0:02:54.4]} 5. Nf3 {[%clk 0:03:03.2]}
5... O-O {[%clk 0:02:54.4]} 6. Be3 {[%clk 0:03:03.5]} 6... a6 {[%clk 0:02:55.7]}
7. a4 {[%clk 0:03:04.2]} 7... b6 {[%clk 0:02:56.8]} 8. Bc4 {[%clk 0:02:33.6]}
8... e6 {[%clk 0:02:50.1]} 9. Qd2 {[%clk 0:02:10]} 9... Bb7 {[%clk 0:02:44.7]}
10. Bg5 {[%clk 0:02:10.9]} 10... Qc8 {[%clk 0:02:14.6]} 11. Bd3 {[%clk
0:01:58.7]} 11... c5 {[%clk 0:02:07.4]} 12. e5 {[%clk 0:01:49.9]} 12... cxd4
{[%clk 0:01:44.6]} 13. exf6 {[%clk 0:00:51.2]} 13... dxc3 {[%clk 0:01:41.1]} 14.
bxc3 {[%clk 0:00:53.1]} 14... Bh8 {[%clk 0:01:41.6]} 15. h4 {[%clk 0:00:49.5]}
15... Nd7 {[%clk 0:01:30.3]} 16. Qf4 {[%clk 0:00:47.9]} 16... e5 {[%clk
0:01:27.2]} 17. Qh2 {[%clk 0:00:42.9]} 17... Nxf6 {[%clk 0:01:27.2]} 18. Bxf6
{[%clk 0:00:20.3]} 18... Bxf6 {[%clk 0:01:26.3]} 19. h5 {[%clk 0:00:22.2]} 19...
Qd7 {[%clk 0:01:11.3]} 20. O-O-O {[%clk 0:00:13]} 20... e4 {[%clk 0:01:05.7]}
21. Bxe4 {[%clk 0:00:12.6]} 21... Bxe4 {[%clk 0:01:06.1]} 22. hxg6 {[%clk
0:00:12.9]} 22... Bxg6 {[%clk 0:01:04]} 23. Rxd6 {[%clk 0:00:13.9]} 23... Qxa4
{[%clk 0:01:04.4]} 24. Ne1 {[%clk 0:00:08.1]} 24... Qa1+ {[%clk 0:01:00.8]} 25.
Kd2 {[%clk 0:00:09]} 25... Qxc3+ {[%clk 0:00:59.3]} 26. Ke2 {[%clk 0:00:08.6]}
0-1

[Event "*** MasterClass Titled Tuesday Blitz"]
[Site "Chess.com"]
[Date "2017.08.01"]
[Round "7"]
[White "HouseOfDurin"]
[Black "Bad4life"]
[Result "0-1"]
[WhiteElo "1872"]
[BlackElo "2166"]
[TimeControl "180+2"]
[EndTime "14:31:07 PDT"]
[Termination "Bad4life won by resignation"]

1. d4 {[%clk 0:03:01.9]} 1... Nf6 {[%clk 0:03:01.1]} 2. Bg5 {[%clk 0:03:02.8]}
2... c5 {[%clk 0:03:01.5]} 3. Bxf6 {[%clk 0:03:03.5]} 3... exf6 {[%clk
0:03:03.4]} 4. e3 {[%clk 0:02:56.2]} 4... Qb6 {[%clk 0:03:03.8]} 5. b3 {[%clk
0:02:56.3]} 5... cxd4 {[%clk 0:03:01.8]} 6. exd4 {[%clk 0:02:58.2]} 6... Nc6
{[%clk 0:03:01.1]} 7. Nf3 {[%clk 0:02:56.3]} 7... d5 {[%clk 0:03:01]} 8. c3
{[%clk 0:02:30.6]} 8... Bg4 {[%clk 0:02:59.8]} 9. h3 {[%clk 0:02:25.6]} 9... Bh5
{[%clk 0:02:59.7]} 10. Bd3 {[%clk 0:02:07.1]} 10... Be7 {[%clk 0:02:56.5]} 11.
Nbd2 {[%clk 0:01:51.5]} 11... O-O {[%clk 0:02:57]} 12. O-O {[%clk 0:01:51.8]}
12... Rac8 {[%clk 0:02:56.6]} 13. g4 {[%clk 0:01:31.9]} 13... Bg6 {[%clk
0:02:57.1]} 14. Bxg6 {[%clk 0:01:33.1]} 14... hxg6 {[%clk 0:02:48.4]} 15. Qe2
{[%clk 0:01:28.4]} 15... Rfe8 {[%clk 0:02:44.5]} 16. Qd3 {[%clk 0:01:28.9]}
16... Nd8 {[%clk 0:02:41]} 17. c4 {[%clk 0:01:14.8]} 17... Ne6 {[%clk
0:02:42.1]} 18. c5 {[%clk 0:00:36.2]} 18... Qc7 {[%clk 0:02:40.1]} 19. Ne1
{[%clk 0:00:27.8]} 19... Nf4 {[%clk 0:02:40.8]} 20. Qf3 {[%clk 0:00:27.9]} 20...
g5 {[%clk 0:02:40.2]} 21. Nd3 {[%clk 0:00:23.4]} 21... Ng6 {[%clk 0:02:39.8]}
22. Qg3 {[%clk 0:00:19]} 22... Qc6 {[%clk 0:02:35.7]} 23. Rfe1 {[%clk 0:00:18]}
23... Bf8 {[%clk 0:02:33.7]} 24. f4 {[%clk 0:00:15.2]} 24... Nh4 {[%clk
0:02:25.6]} 25. fxg5 {[%clk 0:00:12.7]} 25... fxg5 {[%clk 0:02:27.5]} 26. Nf3
{[%clk 0:00:08.8]} 26... Qg6 {[%clk 0:02:17.3]} 27. Nfe5 {[%clk 0:00:09]} 27...
Qh6 {[%clk 0:02:12.6]} 28. Rf1 {[%clk 0:00:10.1]} 28... f6 {[%clk 0:02:10.6]}
29. Nf3 {[%clk 0:00:10.9]} 29... Re3 {[%clk 0:02:08.5]} 30. Nde1 {[%clk
0:00:11.9]} 30... Rce8 {[%clk 0:02:08.2]} 31. Rd1 {[%clk 0:00:10.7]} 31... Ng6
{[%clk 0:02:09.4]} 32. Rd3 {[%clk 0:00:11.2]} 32... Nf4 {[%clk 0:02:09.5]} 33.
Rxe3 {[%clk 0:00:11.1]} 33... Rxe3 {[%clk 0:02:08.2]} 34. Kf2 {[%clk 0:00:10.1]}
34... Re2+ {[%clk 0:02:07.4]} 35. Kg1 {[%clk 0:00:11.1]} 35... Nxh3+ {[%clk
0:02:08.2]} 36. Kh1 {[%clk 0:00:09.8]} 36... Nf2+ {[%clk 0:02:01.8]} 37. Kg2
{[%clk 0:00:11]} 37... Ne4+ {[%clk 0:01:57.3]} 38. Kg1 {[%clk 0:00:11.7]} 38...
Nxg3 {[%clk 0:01:56.4]} 0-1

[Event "*** MasterClass Titled Tuesday Blitz"]
[Site "Chess.com"]
[Date "2017.08.01"]
[Round "7"]
[White "michaelk123"]
[Black "Saitama_Hero"]
[Result "0-1"]
[WhiteElo "2316"]
[BlackElo "2231"]
[TimeControl "180+2"]
[EndTime "14:31:13 PDT"]
[Termination "Saitama_Hero won on time"]

1. d4 {[%clk 0:03:01.9]} 1... d6 {[%clk 0:03:01.9]} 2. e4 {[%clk 0:03:01.4]}
2... e5 {[%clk 0:03:03.2]} 3. Nf3 {[%clk 0:02:59.9]} 3... Nf6 {[%clk 0:03:04.6]}
4. Nc3 {[%clk 0:02:58.5]} 4... Nbd7 {[%clk 0:03:06.1]} 5. Bc4 {[%clk 0:02:58.4]}
5... Be7 {[%clk 0:03:07.3]} 6. a4 {[%clk 0:02:51.9]} 6... c6 {[%clk 0:03:08.1]}
7. O-O {[%clk 0:02:47]} 7... Qc7 {[%clk 0:02:59.7]} 8. h3 {[%clk 0:02:47.1]}
8... h6 {[%clk 0:02:58.8]} 9. Re1 {[%clk 0:02:35.8]} 9... g5 {[%clk 0:02:58.1]}
10. Bb3 {[%clk 0:01:53.1]} 10... Nf8 {[%clk 0:02:57.8]} 11. Qd3 {[%clk
0:01:17.4]} 11... Ng6 {[%clk 0:02:57.4]} 12. Qc4 {[%clk 0:01:10.3]} 12... Be6
{[%clk 0:02:53.8]} 13. d5 {[%clk 0:01:07.8]} 13... Bd7 {[%clk 0:02:40.5]} 14.
dxc6 {[%clk 0:01:04.6]} 14... Be6 {[%clk 0:02:41.9]} 15. Nb5 {[%clk 0:00:31.6]}
15... Qxc6 {[%clk 0:02:36.2]} 16. Qxc6+ {[%clk 0:00:31.5]} 16... bxc6 {[%clk
0:02:38.1]} 17. Nc7+ {[%clk 0:00:31.4]} 17... Kd7 {[%clk 0:02:40]} 18. Bxe6+
{[%clk 0:00:22.9]} 18... fxe6 {[%clk 0:02:41.9]} 19. Nxa8 {[%clk 0:00:23.4]}
19... Rxa8 {[%clk 0:02:43.8]} 20. Be3 {[%clk 0:00:23.2]} 20... d5 {[%clk
0:02:45]} 21. exd5 {[%clk 0:00:17.7]} 21... exd5 {[%clk 0:02:46.3]} 22. Bd2
{[%clk 0:00:17.9]} 22... e4 {[%clk 0:02:45.4]} 23. Nd4 {[%clk 0:00:18.3]} 23...
Rb8 {[%clk 0:02:37.2]} 24. Bc3 {[%clk 0:00:14.7]} 24... Nf4 {[%clk 0:02:36.3]}
25. Nf5 {[%clk 0:00:15.3]} 25... Bd8 {[%clk 0:02:34.8]} 26. Nxh6 {[%clk
0:00:15.8]} 26... c5 {[%clk 0:02:34.5]} 27. Ng4 {[%clk 0:00:11]} 27... d4 {[%clk
0:02:33.4]} 28. Bd2 {[%clk 0:00:11.1]} 28... Nxg4 {[%clk 0:02:31.3]} 29. hxg4
{[%clk 0:00:12.1]} 29... Rxb2 {[%clk 0:02:32]} 30. Rac1 {[%clk 0:00:11.2]} 30...
Nd5 {[%clk 0:01:52.2]} 31. Rxe4 {[%clk 0:00:10.5]} 31... Bf6 {[%clk 0:01:54.1]}
32. f4 {[%clk 0:00:08.8]} 32... gxf4 {[%clk 0:01:51.5]} 33. Kf2 {[%clk
0:00:06.5]} 33... c4 {[%clk 0:01:49.6]} 34. Kf3 {[%clk 0:00:04.5]} 34... d3
{[%clk 0:01:47]} 0-1

[Event "*** MasterClass Titled Tuesday Blitz"]
[Site "Chess.com"]
[Date "2017.08.01"]
[Round "7"]
[White "oskariot"]
[Black "Usurpov"]
[Result "1-0"]
[WhiteElo "2499"]
[BlackElo "2300"]
[TimeControl "180+2"]
[EndTime "14:31:36 PDT"]
[Termination "oskariot won by resignation"]

1. c4 {[%clk 0:03:01.9]} 1... Nf6 {[%clk 0:03:00.6]} 2. Nc3 {[%clk 0:03:02.2]}
2... d5 {[%clk 0:03:01.6]} 3. cxd5 {[%clk 0:02:59.8]} 3... Nxd5 {[%clk
0:03:03.5]} 4. g3 {[%clk 0:03:01.3]} 4... g6 {[%clk 0:03:04.5]} 5. Bg2 {[%clk
0:03:02.6]} 5... Nxc3 {[%clk 0:03:05.6]} 6. bxc3 {[%clk 0:03:03.5]} 6... Bg7
{[%clk 0:03:06.7]} 7. h4 {[%clk 0:03:04.9]} 7... h6 {[%clk 0:03:00.6]} 8. Rb1
{[%clk 0:03:04.2]} 8... Nc6 {[%clk 0:02:59.2]} 9. h5 {[%clk 0:02:46.7]} 9... g5
{[%clk 0:02:56.5]} 10. Qa4 {[%clk 0:02:47.9]} 10... O-O {[%clk 0:02:53.8]} 11.
Nf3 {[%clk 0:02:29.3]} 11... Qd7 {[%clk 0:02:41.1]} 12. Qc2 {[%clk 0:02:22.5]}
12... b6 {[%clk 0:02:36.5]} 13. d4 {[%clk 0:02:22.1]} 13... Qf5 {[%clk
0:02:15.4]} 14. e4 {[%clk 0:02:15.8]} 14... Qa5 {[%clk 0:02:13.2]} 15. e5 {[%clk
0:02:07.3]} 15... Be6 {[%clk 0:01:53]} 16. Nxg5 {[%clk 0:01:57]} 16... hxg5
{[%clk 0:01:39.2]} 17. Bxc6 {[%clk 0:01:55.9]} 17... Qxa2 {[%clk 0:01:30.7]} 18.
Qxa2 {[%clk 0:01:49.2]} 18... Bxa2 {[%clk 0:01:31.3]} 19. Ra1 {[%clk 0:01:50.7]}
19... Bc4 {[%clk 0:01:26.4]} 20. h6 {[%clk 0:01:50.1]} 20... Bh8 {[%clk
0:01:22.6]} 21. h7+ {[%clk 0:01:51]} 21... Kg7 {[%clk 0:01:23]} 22. Bxg5 {[%clk
0:01:46.2]} 22... Kg6 {[%clk 0:01:14.8]} 23. Bxe7 {[%clk 0:01:41.2]} 23... a5
{[%clk 0:01:11.1]} 24. Be4+ {[%clk 0:01:27.1]} 24... f5 {[%clk 0:01:02.4]} 25.
exf6+ {[%clk 0:01:08.4]} 25... Kf7 {[%clk 0:01:02.1]} 26. Bxa8 {[%clk
0:01:02.9]} 26... Rxa8 {[%clk 0:01:01.8]} 27. Kd2 {[%clk 0:01:02.4]} 27... a4
{[%clk 0:00:51]} 28. g4 {[%clk 0:01:01.2]} 28... Kg6 {[%clk 0:00:48.5]} 29. f4
{[%clk 0:01:00.7]} 29... Bf7 {[%clk 0:00:39.5]} 30. Rh5 {[%clk 0:00:56.5]} 30...
Bb3 {[%clk 0:00:18.1]} 31. f5+ {[%clk 0:00:56.9]} 31... Kf7 {[%clk 0:00:19.1]}
32. g5 {[%clk 0:00:58.4]} 1-0